bitfinex/quotes_BTCUSD_20240911
["timestamp","ask_amount","ask_price","bid_price","bid_amount"]
[1726029581810,0.0009321,56479.0,56478.0,3.28751169]
[1726029582231,0.0009321,56479.0,56478.0,3.36037818]
[1726029582935,0.0009321,56479.0,56478.0,3.3739572]
[1726029583188,0.0009321,56479.0,56478.0,3.60886881]
[1726029584077,0.000817,56479.0,56478.0,3.58286881]
[1726029584293,0.000817,56479.0,56478.0,3.58239634]
[1726029584491,0.001817,56479.0,56478.0,3.61039634]
[1726029584738,0.001817,56479.0,56478.0,3.37547334]
[1726029584946,0.000817,56479.0,56478.0,3.34747334]
[1726029585182,0.000817,56479.0,56478.0,3.53765713]
[1726029585425,0.001817,56479.0,56478.0,3.60158]
[1726029585892,0.001817,56479.0,56478.0,3.58758]
[1726029586555,0.000817,56479.0,56478.0,3.57358]
[1726029587000,0.000817,56479.0,56478.0,3.58758]
[1726029587219,0.000817,56479.0,56478.0,3.57358]
[1726029587662,0.000817,56479.0,56478.0,3.58758]
[1726029587887,0.000817,56479.0,56478.0,3.60158]
[1726029587888,0.00011313,56479.0,56478.0,3.60158]
[1726029588309,0.00011313,56479.0,56478.0,3.58758]
[1726029588771,0.00011313,56479.0,56478.0,3.60158]
[1726029591101,0.00011313,56479.0,56478.0,4.488852]
[1726029591336,0.00011313,56479.0,56478.0,4.47527298]
[1726029595996,0.000817,56489.0,56478.0,4.47527298]
[1726029595997,0.000817,56489.0,56488.0,0.36839029]
[1726029596206,0.000817,56489.0,56488.0,0.63726032]
[1726029596655,0.000817,56489.0,56488.0,2.13726032]
[1726029597338,0.000817,56489.0,56488.0,2.15326032]
[1726029597557,0.05922794,56501.0,56488.0,2.15326032]
[1726029597558,0.01939442,56501.0,56498.0,0.1862]
[1726029597786,0.52782518,56499.0,56498.0,0.18219029]
[1726029598059,0.03983352,56500.0,56499.0,0.388]
[1726029598291,2.0751737,56500.0,56499.0,0.388]
[1726029600133,2.0751737,56500.0,56499.0,0.39]
[1726029601242,2.0751737,56500.0,56499.0,0.402]
[1726029601668,2.0751737,56500.0,56499.0,0.4]
[1726029602755,2.0751737,56500.0,56499.0,0.406]
[1726029603441,1.30235639,56500.0,56499.0,0.406]
[1726029603880,1.30235639,56500.0,56499.0,1.906]
[1726029604378,1.31243352,56500.0,56499.0,0.406]
[1726029608187,1.31325052,56500.0,56499.0,0.406]
[1726029611539,1.273417,56500.0,56499.0,0.70146199]
[1726029611742,1.273417,56500.0,56499.0,0.80146199]
[1726029611989,0.000817,56500.0,56499.0,0.80146199]
[1726029612198,0.000817,56500.0,56499.0,2.54208717]
[1726029612831,0.000817,56500.0,56499.0,2.53808717]
[1726029613103,0.000817,56500.0,56499.0,2.53608717]
[1726029613942,0.000817,56500.0,56499.0,2.36820638]
[1726029614405,0.000817,56500.0,56499.0,2.37420638]
[1726029614626,0.000817,56500.0,56499.0,2.36220638]
[1726029614832,0.000817,56500.0,56499.0,2.36820638]
[1726029615267,0.000817,56500.0,56499.0,2.35620638]
[1726029615472,0.000817,56500.0,56499.0,2.37020638]
[1726029616134,0.000817,56500.0,56499.0,2.38420638]
[1726029616338,0.000817,56500.0,56499.0,2.37020638]
[1726029617081,0.000817,56500.0,56499.0,2.57814656]
[1726029617310,1.2726,56513.0,56501.0,0.05016648]
[1726029617509,0.0024564,56514.0,56513.0,0.1988]
[1726029617715,0.0024564,56514.0,56513.0,1.0748]
[1726029617912,0.0024564,56514.0,56513.0,2.5748]
[1726029618404,0.0024564,56514.0,56513.0,2.376]
[1726029618832,0.0024564,56514.0,56513.0,2.389]
[1726029619269,0.0024564,56514.0,56513.0,2.39]
[1726029619481,0.3841564,56514.0,56513.0,2.39]
[1726029619740,0.3841564,56514.0,56513.0,0.89]
[1726029619942,0.5706564,56514.0,56513.0,0.89]
[1726029620567,0.5714724,56514.0,56513.0,0.89]
[1726029620797,0.3849724,56514.0,56513.0,0.904]
[1726029621005,0.0032724,56514.0,56513.0,0.89]
[1726029621226,0.0032724,56514.0,56513.0,0.876]
[1726029621441,0.0032724,56514.0,56513.0,0.89]
[1726029621652,0.0032724,56514.0,56513.0,0.904]
[1726029622105,0.0032724,56514.0,56513.0,2.376]
[1726029622547,0.0032724,56514.0,56513.0,2.404]
[1726029622764,0.0032724,56514.0,56513.0,2.6028]
[1726029623387,0.0032724,56514.0,56513.0,2.76933085]
[1726029623612,0.0032724,56514.0,56513.0,2.90155091]
[1726029623846,0.0032724,56514.0,56513.0,2.88755091]
[1726029624063,0.0032724,56514.0,56513.0,2.75533085]
[1726029624281,0.0032724,56514.0,56513.0,2.87511284]
[1726029624496,0.0032724,56514.0,56513.0,2.57053085]
[1726029624744,0.0032724,56514.0,56513.0,2.63585362]
[1726029624988,0.0032724,56514.0,56513.0,0.904]
[1726029625208,0.0032724,56514.0,56513.0,0.876]
[1726029625443,0.0032724,56514.0,56513.0,2.376]
[1726029625673,0.0032724,56514.0,56513.0,2.404]
[1726029625893,0.04310592,56514.0,56513.0,0.79]
[1726029626152,0.61130592,56514.0,56513.0,0.79]
[1726029626392,0.61130592,56514.0,56513.0,0.804]
[1726029627404,0.04310592,56514.0,56513.0,0.97200638]
[1726029627642,0.04310592,56514.0,56513.0,0.98600638]
[1726029628398,0.0032724,56514.0,56513.0,1.0996331]
[1726029628859,0.0032724,56514.0,56513.0,2.5996331]
[1726029629076,0.0032724,56514.0,56513.0,2.5856331]
[1726029629298,0.0032724,56514.0,56513.0,2.57200638]
[1726029629521,0.0032724,56514.0,56513.0,2.58600638]
[1726029629747,0.0032724,56514.0,56513.0,2.57200638]
[1726029630037,0.0032724,56514.0,56513.0,2.58600638]
[1726029630711,0.0032724,56514.0,56513.0,2.57200638]
[1726029631188,0.0032724,56514.0,56513.0,2.58300638]
[1726029631355,0.0032724,56514.0,56513.0,2.56900638]
[1726029631586,1.4666724,56514.0,56513.0,2.376]
[1726029631796,1.4666724,56514.0,56513.0,0.79]
[1726029631797,2.0815461,56514.0,56513.0,0.79]
[1726029631986,2.1045461,56514.0,56513.0,0.014]
[1726029632401,2.1045461,56514.0,56513.0,0.028]
[1726029632598,2.1045461,56514.0,56513.0,0.014]
[1726029632807,0.5899,56513.0,56500.0,0.18200638]
[1726029633052,0.1908,56511.0,56500.0,0.18200638]
[1726029633231,0.17594018,56510.0,56501.0,0.1]
[1726029633428,0.17594018,56510.0,56502.0,1.5]
[1726029633787,0.03983352,56503.0,56502.0,1.5]
[1726029634001,0.03983352,56503.0,56499.0,0.83051685]
[1726029634002,0.03983352,56501.0,56499.0,0.777632]
[1726029634240,0.03983352,56501.0,56500.0,0.1]
[1726029634437,0.03983352,56501.0,56500.0,1.6]
[1726029634654,0.03983352,56501.0,56500.0,1.78200638]
[1726029635364,0.02975639,56501.0,56500.0,1.78200638]
[1726029635596,0.02975639,56501.0,56500.0,1.84889123]
[1726029635785,0.02975639,56501.0,56500.0,1.84589123]
[1726029636141,0.02975639,56501.0,56500.0,1.85989123]
[1726029637495,0.02975639,56503.0,56500.0,1.85989123]
[1726029637741,0.02975639,56503.0,56501.0,0.05288485]
[1726029638351,0.02975639,56503.0,56502.0,1.5]
[1726029639408,0.02975639,56509.0,56502.0,2.096]
[1726029639617,0.02975639,56509.0,56507.0,0.05292649]
[1726029640044,0.02975639,56509.0,56506.0,0.15292649]
[1726029640276,0.02975639,56509.0,56508.0,1.55292768]
[1726029640706,0.02975639,56509.0,56508.0,1.55292756]
[1726029641145,0.02975639,56509.0,56508.0,1.5]
[1726029641393,0.1908,56504.0,56502.0,0.05292756]
[1726029641620,0.03983352,56500.0,56498.0,0.05292756]
[1726029642021,0.03983352,56500.0,56497.0,0.05292756]
[1726029643326,0.03983352,56500.0,56499.0,0.791632]
[1726029643550,0.03983352,56500.0,56499.0,0.777632]
[1726029643977,0.03983352,56500.0,56499.0,0.791632]
[1726029644406,0.03983352,56500.0,56499.0,0.800632]
[1726029645072,0.7784737,56500.0,56499.0,0.791632]
[1726029645377,0.7784737,56500.0,56499.0,0.025632]
[1726029645921,0.7784737,56500.0,56499.0,0.011632]
[1726029646614,0.7784737,56500.0,56499.0,0.025632]
[1726029647074,0.7784737,56500.0,56499.0,0.001632]
[1726029647293,0.7784737,56500.0,56499.0,0.015632]
[1726029647509,0.7784737,56500.0,56499.0,0.024632]
[1726029647729,0.7784737,56500.0,56499.0,0.010632]
[1726029647978,0.7784737,56500.0,56499.0,0.001632]
[1726029648394,0.7784737,56500.0,56499.0,0.002632]
[1726029649028,0.7784737,56500.0,56499.0,0.010632]
[1726029655670,2.0510737,56500.0,56499.0,0.010632]
[1726029656819,2.0518907,56500.0,56499.0,0.001632]
[1726029657063,2.0518907,56500.0,56499.0,0.013632]
[1726029658593,1.4891907,56500.0,56499.0,0.013632]
[1726029659445,1.4891907,56500.0,56499.0,1.504632]
[1726029659673,1.4891907,56500.0,56499.0,1.514632]
[1726029659895,1.4891907,56500.0,56499.0,1.501632]
[1726029660116,1.4891907,56500.0,56499.0,0.001632]
[1726029660341,1.4891907,56500.0,56499.0,0.016632]
[1726029660857,1.4891907,56500.0,56499.0,0.012632]
[1726029661065,1.4891907,56500.0,56499.0,0.017632]
[1726029665006,1.31325052,56500.0,56499.0,0.017632]
[1726029665450,1.31325052,56500.0,56499.0,1.517632]
[1726029666289,1.31325052,56500.0,56499.0,0.017632]
[1726029666734,1.31325052,56500.0,56499.0,0.210532]
[1726029666980,1.273417,56500.0,56499.0,0.210532]
[1726029667196,0.000817,56500.0,56499.0,0.97241814]
[1726029667427,0.000817,56500.0,56499.0,1.10100119]
[1726029667639,0.000817,56500.0,56499.0,2.62116767]
[1726029667866,0.000817,56500.0,56499.0,2.77417238]
[1726029668078,0.000817,56500.0,56499.0,4.64057951]
[1726029668333,0.0001018,56500.0,56499.0,4.22446651]
[1726029668558,0.0001018,56500.0,56499.0,3.9847274]
[1726029668856,0.0001018,56500.0,56499.0,3.4460974]
[1726029669063,0.0001018,56500.0,56499.0,3.2691444]
[1726029669507,0.0001018,56500.0,56499.0,3.2551444]
[1726029669715,0.0001018,56500.0,56499.0,3.1075444]
[1726029669938,0.0001018,56500.0,56499.0,3.1355444]
[1726029670157,0.0001018,56500.0,56499.0,2.90125251]
[1726029670383,0.0001018,56500.0,56499.0,3.1195444]
[1726029670603,0.0001018,56500.0,56499.0,3.1215444]
[1726029671323,0.0001018,56500.0,56499.0,2.63049851]
[1726029671551,0.0001018,56500.0,56499.0,2.56657564]
[1726029671811,0.0001018,56500.0,56499.0,0.47939185]
[1726029672274,0.0001018,56500.0,56499.0,1.97939185]
[1726029672505,0.0001018,56500.0,56499.0,1.96706259]
[1726029672735,0.0001018,56500.0,56499.0,1.98106259]
[1726029672961,0.0001018,56500.0,56499.0,1.96706259]
[1726029673447,0.0001018,56500.0,56499.0,1.99506259]
[1726029673903,0.0001018,56500.0,56499.0,1.98106259]
[1726029674352,0.0001018,56500.0,56499.0,1.99506259]
[1726029674840,0.0001018,56500.0,56499.0,2.00879462]
[1726029675277,0.0001018,56500.0,56499.0,1.83626403]
[1726029675512,0.0001018,56500.0,56499.0,2.00885308]
[1726029675955,0.0001018,56500.0,56499.0,1.83626403]
[1726029676186,0.0001018,56500.0,56499.0,2.00886532]
[1726029676424,0.0001018,56500.0,56499.0,1.99513329]
[1726029677165,0.0001018,56500.0,56499.0,1.80223329]
[1726029677381,0.0001018,56500.0,56499.0,1.629632]
[1726029677602,0.0001018,56500.0,56499.0,1.80265931]
[1726029678901,0.51693352,56519.0,56505.0,0.4095]
[1726029679106,0.02975639,56516.0,56513.0,0.23493551]
[1726029679387,0.02975639,56516.0,56513.0,0.28200638]
[1726029679617,0.02975639,56519.0,56513.0,0.28200638]
[1726029679817,0.03983352,56520.0,56513.0,2.05790007]
[1726029679969,0.03983352,56520.0,56513.0,2.05788107]
[1726029680187,0.02975639,56520.0,56513.0,2.05788107]
[1726029680388,0.02975639,56520.0,56513.0,2.24396625]
[1726029681008,1.31243352,56521.0,56513.0,2.25796625]
[1726029681234,1.31243352,56521.0,56513.0,2.08588107]
[1726029681450,1.2726,56521.0,56513.0,2.08588107]
[1726029681660,1.31243352,56521.0,56513.0,2.25784319]
[1726029682080,1.31243352,56521.0,56513.0,2.25779262]
[1726029682539,0.03983352,56521.0,56513.0,2.25779262]
[1726029683185,0.03983352,56521.0,56513.0,2.00650638]
[1726029684283,0.03983352,56521.0,56513.0,2.07318898]
[1726029686122,0.03983352,56521.0,56513.0,2.02032678]
[1726029690895,1.74971792,56524.0,56513.0,1.39861786]
[1726029690896,0.47711792,56524.0,56513.0,1.39861786]
[1726029691098,0.50687431,56524.0,56513.0,1.42499764]
[1726029691302,0.68807431,56524.0,56513.0,2.19196406]
[1726029691536,0.68807431,56524.0,56513.0,2.32395746]
[1726029691722,0.69815144,56524.0,56513.0,2.30995746]
[1726029692163,0.69815144,56524.0,56513.0,2.19196406]
[1726029693112,0.69815144,56524.0,56513.0,2.29754219]
[1726029693318,0.69815144,56524.0,56513.0,2.26954219]
[1726029693759,0.69815144,56524.0,56513.0,2.28354219]
[1726029694007,0.51695144,56524.0,56513.0,2.28354219]
[1726029694211,0.50687431,56524.0,56513.0,2.91590737]
[1726029694430,0.50687431,56524.0,56513.0,2.80012924]
[1726029694623,0.50687431,56524.0,56513.0,2.68407924]
[1726029694822,0.50687431,56524.0,56513.0,2.67007924]
[1726029695053,0.50687431,56524.0,56513.0,2.68078804]
[1726029695259,0.50687431,56524.0,56513.0,2.66678804]
[1726029695486,0.50687431,56524.0,56513.0,2.68078804]
[1726029695704,0.47711792,56524.0,56513.0,2.59963004]
[1726029695929,0.47711792,56524.0,56513.0,2.62963004]
[1726029696135,0.47711792,56524.0,56513.0,3.11627878]
[1726029696351,0.47711792,56524.0,56513.0,3.02473004]
[1726029696532,0.47711792,56524.0,56523.0,0.36820638]
[1726029696806,0.47711792,56524.0,56523.0,1.24420638]
[1726029696807,1.792e-05,56524.0,56523.0,1.24420638]
[1726029697424,1.792e-05,56524.0,56523.0,2.74420638]
[1726029697869,1.792e-05,56524.0,56523.0,3.13930638]
[1726029698085,1.792e-05,56524.0,56523.0,3.15330638]
[1726029698505,1.792e-05,56524.0,56523.0,3.20608396]
[1726029698733,1.792e-05,56524.0,56523.0,2.81098396]
[1726029698911,1.792e-05,56524.0,56523.0,2.75820638]
[1726029699586,1.792e-05,56524.0,56523.0,2.74420638]
[1726029699807,1.792e-05,56524.0,56523.0,2.75820638]
[1726029701081,1.792e-05,56524.0,56523.0,2.78796338]
[1726029701304,1.792e-05,56524.0,56523.0,2.80196338]
[1726029701524,1.792e-05,56524.0,56523.0,2.60176338]
[1726029701818,1.792e-05,56524.0,56523.0,2.58776338]
[1726029702035,1.792e-05,56524.0,56523.0,2.61576338]
[1726029702260,1.792e-05,56524.0,56523.0,2.57200638]
[1726029702474,1.792e-05,56524.0,56523.0,2.55800638]
[1726029702706,1.792e-05,56524.0,56523.0,2.57200638]
[1726029703161,1.792e-05,56524.0,56523.0,2.58600638]
[1726029704488,1.792e-05,56524.0,56523.0,2.63877572]
[1726029704697,1.792e-05,56524.0,56523.0,2.6388]
[1726029705319,1.792e-05,56524.0,56523.0,3.2429]
[1726029706177,1.792e-05,56524.0,56523.0,2.8275]
[1726029707282,1.792e-05,56524.0,56523.0,2.6388]
[1726029708334,1.792e-05,56524.0,56523.0,2.58600638]
[1726029708780,0.19971792,56524.0,56523.0,0.904]
[1726029709670,0.19971792,56524.0,56523.0,1.08600638]
[1726029710152,1.792e-05,56524.0,56523.0,1.07200638]
[1726029710384,1.792e-05,56524.0,56523.0,1.11083622]
[1726029710602,1.792e-05,56524.0,56523.0,1.49984852]
[1726029710829,1.792e-05,56524.0,56523.0,1.54024534]
[1726029711062,1.792e-05,56524.0,56523.0,1.52624534]
[1726029711287,1.792e-05,56524.0,56523.0,1.55264215]
[1726029711501,1.792e-05,56524.0,56523.0,1.31130223]
[1726029711735,1.792e-05,56524.0,56523.0,1.32330223]
[1726029711977,1.792e-05,56524.0,56523.0,1.33730223]
[1726029712195,1.792e-05,56524.0,56523.0,1.35175001]
[1726029712662,1.792e-05,56524.0,56523.0,1.36175001]
[1726029713081,1.792e-05,56524.0,56523.0,1.38794215]
[1726029713320,1.792e-05,56524.0,56523.0,1.57664215]
[1726029713530,1.792e-05,56524.0,56523.0,1.38794215]
[1726029713755,1.792e-05,56524.0,56523.0,1.36183771]
[1726029713977,1.792e-05,56524.0,56523.0,1.25595809]
[1726029714176,1.792e-05,56524.0,56523.0,1.25752441]
[1726029716544,1.792e-05,56524.0,56523.0,2.75752441]
[1726029722323,1.792e-05,56524.0,56523.0,2.94622441]
[1726029723173,1.792e-05,56524.0,56523.0,2.93222441]
[1726029723390,1.792e-05,56524.0,56523.0,2.92222441]
[1726029723616,1.792e-05,56524.0,56523.0,2.93622441]
[1726029723843,1.792e-05,56524.0,56523.0,2.93222441]
[1726029724059,1.792e-05,56524.0,56523.0,2.94548471]
[1726029724278,1.792e-05,56524.0,56523.0,2.95948471]
[1726029725030,1.792e-05,56524.0,56523.0,2.77078471]
[1726029725257,1.792e-05,56524.0,56523.0,2.75678471]
[1726029725949,1.792e-05,56524.0,56523.0,2.74678471]
[1726029726472,1.792e-05,56524.0,56523.0,2.75778471]
[1726029726952,1.792e-05,56524.0,56523.0,2.74678471]
[1726029727228,1.792e-05,56524.0,56523.0,2.74670432]
[1726029727539,2.07069162,56524.0,56523.0,1.07048264]
[1726029727768,2.07069162,56524.0,56523.0,0.027]
[1726029728249,2.07069162,56524.0,56523.0,0.013]
[1726029728490,2.07069162,56524.0,56523.0,0.027]
[1726029728729,0.03983352,56519.0,56518.0,0.05302533]
[1726029728960,0.7980737,56519.0,56518.0,0.05302533]
[1726029729426,0.7980737,56519.0,56517.0,0.05302533]
[1726029729663,0.17594018,56518.0,56517.0,0.05302533]
[1726029730402,0.4154737,56518.0,56517.0,0.05302533]
[1726029730646,0.23953352,56517.0,56516.0,0.05302533]
[1726029730886,0.4154737,56517.0,56516.0,0.05302533]
[1726029731122,0.03983352,56516.0,56515.0,0.05465933]
[1726029731361,0.2157737,56516.0,56515.0,0.001634]
[1726029731597,0.2157737,56516.0,56515.0,0.05463833]
[1726029732310,0.03983352,56516.0,56515.0,0.05463833]
[1726029732555,0.03983352,56516.0,56515.0,0.08116918]
[1726029732848,0.03983352,56516.0,56515.0,0.25821436]
[1726029733095,0.03983352,56516.0,56515.0,0.27221436]
[1726029733349,0.03983352,56516.0,56515.0,0.28121436]
[1726029733818,0.03983352,56516.0,56515.0,0.29872418]
[1726029734058,0.03983352,56521.0,56515.0,0.30872418]
[1726029734281,0.03983352,56521.0,56520.0,0.28798258]
[1726029734511,0.03983352,56521.0,56520.0,0.45905156]
[1726029734725,0.03983352,56521.0,56520.0,2.09152181]
[1726029734961,0.02975639,56522.0,56520.0,2.09152181]
[1726029735198,1.792e-05,56524.0,56522.0,0.1891]
[1726029735418,1.792e-05,56524.0,56523.0,1.05304518]
[1726029736297,1.792e-05,56524.0,56523.0,1.2120864]
[1726029736755,1.792e-05,56524.0,56523.0,1.2230864]
[1726029737205,1.792e-05,56524.0,56523.0,1.2120864]
[1726029738127,1.792e-05,56524.0,56523.0,0.876]
[1726029738377,1.792e-05,56524.0,56523.0,0.89]
[1726029738603,1.792e-05,56524.0,56523.0,2.72419653]
[1726029738826,1.792e-05,56524.0,56523.0,2.73819653]
[1726029739967,1.792e-05,56524.0,56523.0,2.72419653]
[1726029740088,1.792e-05,56524.0,56523.0,2.56524498]
[1726029740282,1.792e-05,56524.0,56523.0,2.57924498]
[1726029740551,1.792e-05,56524.0,56523.0,2.39]
[1726029740784,1.792e-05,56524.0,56523.0,2.41764797]
[1726029741652,1.792e-05,56524.0,56523.0,2.57984022]
[1726029743771,0.57291792,56524.0,56523.0,1.07984022]
[1726029744201,0.38651792,56524.0,56523.0,1.07984022]
[1726029744414,1.792e-05,56524.0,56523.0,1.07984022]
[1726029744614,1.792e-05,56524.0,56523.0,1.06584022]
[1726029745148,1.792e-05,56524.0,56523.0,1.07984022]
[1726029745349,1.792e-05,56524.0,56523.0,1.06584022]
[1726029745556,0.78869162,56524.0,56523.0,0.18984022]
[1726029745757,0.78869162,56524.0,56523.0,0.028]
[1726029745959,2.11629162,56524.0,56523.0,0.028]
[1726029746198,2.11429162,56524.0,56523.0,0.028]
[1726029746639,2.11429162,56524.0,56523.0,0.014]
[1726029746875,0.61273352,56520.0,56519.0,0.23467548]
[1726029747076,0.8116737,56520.0,56519.0,0.23467548]
[1726029748496,0.8116737,56520.0,56519.0,0.24167548]
[1726029748702,0.8116737,56520.0,56519.0,0.23467548]
[1726029749119,0.03983352,56516.0,56515.0,0.001634]
[1726029749333,0.22019797,56516.0,56515.0,0.001634]
[1726029750580,0.22019797,56516.0,56515.0,0.012634]
[1726029750791,0.2157737,56516.0,56515.0,0.012634]
[1726029750995,0.2157737,56516.0,56515.0,0.001634]
[1726029751436,0.2157737,56516.0,56515.0,0.012634]
[1726029751437,1.4883737,56516.0,56515.0,0.012634]
[1726029751613,1.4883737,56516.0,56515.0,0.001634]
[1726029751846,1.4883737,56516.0,56515.0,0.006634]
[1726029752048,1.4883737,56516.0,56515.0,0.017634]
[1726029752254,1.4883737,56516.0,56515.0,0.012634]
[1726029752671,1.4883737,56516.0,56515.0,0.017634]
[1726029753089,1.4883737,56516.0,56515.0,0.012634]
[1726029753304,1.4883737,56516.0,56515.0,0.001634]
[1726029753532,1.4883737,56516.0,56515.0,0.017634]
[1726029755082,1.4883737,56516.0,56515.0,0.012634]
[1726029755312,1.4883737,56516.0,56515.0,0.017634]
[1726029757212,2.1000737,56516.0,56515.0,0.017634]
[1726029758353,2.1320737,56516.0,56515.0,0.017634]
[1726029758564,2.1300737,56516.0,56515.0,0.017634]
[1726029760294,2.1000737,56516.0,56515.0,0.017634]
[1726029760521,2.1320737,56516.0,56515.0,0.017634]
[1726029761453,2.1000737,56516.0,56515.0,0.017634]
[1726029762322,2.1300737,56516.0,56515.0,0.017634]
[1726029762541,2.1000737,56516.0,56515.0,0.017634]
[1726029762752,2.0770737,56516.0,56515.0,0.017634]
[1726029763936,2.0778907,56516.0,56515.0,0.017634]
[1726029768743,2.1008907,56516.0,56515.0,0.017634]
[1726029769161,2.0778907,56516.0,56515.0,0.017634]
[1726029770219,2.1008907,56516.0,56515.0,0.017634]
[1726029774522,2.0778907,56516.0,56515.0,0.017634]
[1726029778274,2.36906025,56516.0,56515.0,0.017634]
[1726029778536,0.67923352,56501.0,56500.0,0.001634]
[1726029778774,2.35214608,56501.0,56500.0,0.001634]
[1726029779000,2.35214608,56501.0,56499.0,0.001632]
[1726029779001,0.74123352,56500.0,56499.0,0.001632]
[1726029779230,0.74123352,56500.0,56490.0,0.001634]
[1726029779231,0.65123352,56491.0,56490.0,0.001634]
[1726029779444,0.87077004,56491.0,56490.0,0.001634]
[1726029779675,0.89877004,56491.0,56490.0,0.001634]
[1726029781387,0.86877004,56491.0,56490.0,0.001634]
[1726029782061,0.86977004,56491.0,56490.0,0.001634]
[1726029782269,0.86877004,56491.0,56490.0,0.001634]
[1726029782504,0.87677004,56491.0,56490.0,0.002634]
[1726029783319,0.87877004,56491.0,56490.0,0.002634]
[1726029783751,0.88177004,56491.0,56490.0,0.002634]
[1726029784175,0.87377004,56491.0,56490.0,0.001634]
[1726029784397,2.12873604,56491.0,56490.0,0.001634]
[1726029784616,2.13373604,56491.0,56490.0,0.002634]
[1726029785063,1.93913604,56491.0,56490.0,0.002634]
[1726029786345,2.33990559,56491.0,56490.0,0.002634]
[1726029786349,2.39990559,56491.0,56490.0,0.002634]
[1726029786601,2.39990559,56491.0,56480.0,0.00070822]
[1726029786602,0.03983352,56481.0,56480.0,0.00070822]
[1726029786840,2.07947645,56481.0,56480.0,0.00070822]
[1726029787101,2.10947645,56481.0,56480.0,0.00070822]
[1726029787359,2.31448283,56481.0,56480.0,0.00070822]
[1726029788316,2.13247645,56481.0,56480.0,0.00070822]
[1726029788778,2.13347645,56481.0,56480.0,0.00870822]
[1726029789215,2.13347645,56481.0,56480.0,0.01070822]
[1726029789893,2.309646,56481.0,56480.0,0.01070822]
[1726029790129,2.54722523,56481.0,56480.0,0.01070822]
[1726029790377,2.64922523,56481.0,56480.0,0.01070822]
[1726029791470,2.64822523,56481.0,56480.0,0.00270822]
[1726029791930,2.66122523,56481.0,56480.0,0.00370822]
[1726029792133,2.66122523,56481.0,56480.0,0.00070822]
[1726029792349,2.67822523,56481.0,56480.0,0.00270822]
[1726029792821,2.67822523,56481.0,56480.0,0.00170822]
[1726029792822,2.67222523,56481.0,56480.0,0.00170822]
[1726029793269,2.67822523,56481.0,56480.0,0.00270822]
[1726029793505,0.03983352,56468.0,56467.0,0.0037834]
[1726029793723,1.48464284,56468.0,56467.0,0.0037834]
[1726029794214,1.45721468,56468.0,56467.0,0.0037834]
[1726029794425,1.45721468,56468.0,56467.0,0.2015834]
[1726029795076,1.45721468,56468.0,56467.0,0.2055834]
[1726029795321,0.2157737,56468.0,56467.0,0.2015834]
[1726029795536,0.2177737,56468.0,56467.0,0.38358978]
[1726029795749,0.2187737,56468.0,56467.0,0.39558978]
[1726029795962,0.04283352,56468.0,56467.0,0.39558978]
[1726029796169,0.04083352,56468.0,56467.0,0.39558978]
[1726029796387,0.04083352,56468.0,56467.0,0.40058978]
[1726029797095,0.001,56468.0,56467.0,0.40058978]
[1726029797302,0.001,56468.0,56467.0,0.88008978]
[1726029797941,0.001,56468.0,56467.0,0.88208978]
[1726029798162,0.001,56468.0,56467.0,0.99062978]
[1726029798377,1.24144098,56481.0,56467.0,2.47362978]
[1726029798378,0.52782518,56480.0,56467.0,2.47362978]
[1726029798586,0.03983352,56483.0,56478.0,0.18200638]
[1726029798801,0.03983352,56483.0,56468.0,2.473086]
[1726029798802,0.03983352,56486.0,56482.0,0.18200638]
[1726029799049,0.03983352,56485.0,56483.0,0.1978]
[1726029799252,0.03983352,56486.0,56483.0,0.1978]
[1726029800143,0.02059634,56491.0,56486.0,0.3795]
[1726029800389,0.02059634,56491.0,56490.0,0.18200638]
[1726029800605,0.05035273,56491.0,56490.0,0.85930638]
[1726029802607,0.02059634,56491.0,56490.0,0.85930638]
[1726029803090,0.02059634,56491.0,56490.0,0.86830638]
[1726029803567,0.02059634,56491.0,56490.0,0.88230638]
[1726029805988,0.03983352,56502.0,56491.0,0.1978]
[1726029806199,0.03983352,56502.0,56496.0,0.18200638]
[1726029806416,0.03983352,56502.0,56497.0,0.2978]
[1726029806620,0.03983352,56502.0,56498.0,0.3795]
[1726029806831,0.04228992,56503.0,56498.0,0.4795]
[1726029807040,0.0024564,56503.0,56498.0,0.4795]
[1726029807270,0.04228992,56503.0,56498.0,0.4795]
[1726029808782,0.04228992,56503.0,56498.0,0.4935]
[1726029808989,0.0024564,56503.0,56498.0,0.4935]
[1726029809204,0.03983352,56500.0,56498.0,0.1]
[1726029809436,0.03983352,56500.0,56498.0,0.114]
[1726029809642,0.03983352,56500.0,56498.0,0.1]
[1726029809854,0.03983352,56500.0,56498.0,0.112]
[1726029810067,0.03983352,56500.0,56498.0,0.126]
[1726029810371,0.03983352,56500.0,56498.0,0.114]
[1726029810800,0.03983352,56500.0,56498.0,0.128]
[1726029812299,1.24144098,56502.0,56498.0,0.128]
[1726029812300,0.2165907,56499.0,56498.0,0.028]
[1726029812506,2.03268049,56499.0,56498.0,0.014]
[1726029812715,1.88663168,56499.0,56498.0,0.028]
[1726029813134,1.88663168,56499.0,56498.0,0.014]
[1726029813346,1.88663168,56499.0,56498.0,0.022]
[1726029813806,0.03983352,56481.0,56478.0,0.1921]
[1726029816081,0.03983352,56481.0,56478.0,0.2051]
[1726029816298,0.03983352,56481.0,56479.0,0.1]
[1726029817782,0.03983352,56481.0,56479.0,0.114]
[1726029818230,0.03983352,56481.0,56480.0,0.18200638]
[1726029818462,0.03983352,56481.0,56480.0,0.28200638]
[1726029819574,0.03983352,56481.0,56480.0,0.114]
[1726029819792,0.03983352,56481.0,56480.0,0.014]
[1726029819999,0.03983352,56481.0,56480.0,0.114]
[1726029820208,0.03983352,56481.0,56480.0,0.123]
[1726029821071,0.03983352,56481.0,56480.0,0.023]
[1726029821283,0.03983352,56481.0,56480.0,0.20500638]
[1726029821459,0.03983352,56481.0,56480.0,0.30500638]
[1726029826592,0.03983352,56483.0,56480.0,0.30500638]
[1726029826808,0.03983352,56481.0,56480.0,0.30500638]
[1726029827255,0.03983352,56483.0,56480.0,0.30500638]
[1726029827470,0.03983352,56481.0,56480.0,0.30500638]
[1726029828798,0.03983352,56481.0,56480.0,0.29600638]
[1726029829030,0.03983352,56481.0,56480.0,0.30300638]
[1726029829473,0.03983352,56481.0,56480.0,0.29600638]
[1726029829707,2.02151468,56481.0,56480.0,0.014]
[1726029829955,2.04451468,56481.0,56480.0,0.023]
[1726029834410,1.83581468,56481.0,56480.0,0.023]
[1726029838422,1.83663168,56481.0,56480.0,0.023]
[1726029838691,1.83663168,56481.0,56475.0,0.001634]
[1726029838692,0.03983352,56476.0,56475.0,0.001634]
[1726029838889,0.2157737,56476.0,56475.0,0.001634]
[1726029839103,0.14179776,56460.0,56459.0,0.05294774]
[1726029839315,0.14179776,56460.0,56459.0,0.82894774]
[1726029839533,0.35757146,56460.0,56459.0,0.776]